[Event "21st Mediterranean Flowers WGM 2021"]
[Site "Rijeka"]
[Date "2021.03.10"]
[Round "5.3"]
[White "Medic, Mirjana"]
[Black "Kejzar, Petra"]
[Result "1/2-1/2"]
[ECO "D02"]
[WhiteElo "2169"]
[BlackElo "2043"]
[Annotator "ChessBase"]
[PlyCount "120"]
[EventDate "2021.03.07"]
[EventType "tourn"]
[EventCountry "CRO"]
[SourceTitle "playchess.com"]
[Source "ChessBase"]
[SourceQuality "1"]
[TimeControl "5400+30"]

1. d4 {[%emt 0:00:00]} Nf6 {[%emt 0:02:49]} 2. Nf3 {[%emt 0:00:00]} e6 {[%emt 0:00:06]} 3. Bf4 {[%emt 0:01:48]} d5 {[%emt 0:01:08]} 4. e3 {[%emt 0:01:58]} c5 {[%emt 0:03:39]} 5. c3 {[%emt 0:00:00]} Nc6 {[%emt 0:01:58]} 6. Nbd2 {[%emt 0:02:22]} Bd6 {[%emt 0:05:15]} 7. Bg3 {[%emt 0:04:43]} O-O {[%emt 0:04:04]} 8. Bd3 {[%emt 0:06:31]} b6 {[%emt 0:07:13]} 9. Ne5 {[%emt 0:00:00]} Bb7 {[%emt 0:00:56]} 10. O-O {[%emt 0:00:00]} Ne7 {[%emt 0:16:24]} 11. Qc2 {[%emt 0:07:23]} Rc8 {[%emt 0:00:00]} 12. f4 {[%emt 0:00:00]} c4 {[%emt 0:00:00]} 13. Be2 {[%emt 0:00:00]} b5 {[%emt 0:00:00]} 14. a3 {[%emt 0:00:52]} Ne4 {[%emt 0:05:34]} 15. Bh4 {[%emt 0:09:59]} f6 {[%emt 0:00:00]} 16. Nef3 {[%emt 0:03:57]} Qb6 {[%emt 0:15:08]} 17. g4 {[%emt 0:09:08]} a5 {[%emt 0:00:00]} 18. Nxe4 {[%emt 0:00:33]} dxe4 {[%emt 0:00:00]} 19. Nd2 {[%emt 0:00:18]} Nd5 {[%emt 0:03:24]} 20. Bf2 {[%emt 0:03:12]} Bxf4 {[%emt 0:04:59]} 21. exf4 {[%emt 0:06:54]} e3 {[%emt 0:01:39]} 22. Bg3 {[%emt 0:03:03]} exd2 {[%emt 0:00:14]} 23. Qxd2 {[%emt 0:00:05]} Rfe8 {[%emt 0:02:20]} 24. Bf3 {[%emt 0:02:59]} e5 25. fxe5 {[%emt 0:00:43]} fxe5 {[%emt 0:07:51]} 26. Rae1 {[%emt 0:02:33]} exd4 {[%emt 0:00:00]} 27. Qxd4 {[%emt 0:05:21]} Qxd4+ {[%emt 0:00:00]} 28. cxd4 {[%emt 0:00:02]} b4 {[%emt 0:02:37]} 29. axb4 {[%emt 0:03:07]} axb4 {[%emt 0:00:05]} 30. Rxe8+ {[%emt 0:03:59]} Rxe8 {[%emt 0:00:01]} 31. Rc1 {[%emt 0:00:30]} Rc8 {[%emt 0:02:04]} 32. Be1 {[%emt 0:03:09]} Re8 {[%emt 0:04:34]} 33. Bxb4 {[%emt 0:11:05]} Nf4 {[%emt 0:01:02]} 34. Rf1 {[%emt 0:00:22]} Bxf3 {[%emt 0:02:46]} 35. Rxf3 {[%emt 0:00:02]} Ne2+ {[%emt 0:00:06]} 36. Kf2 {[%emt 0:00:53]} Nxd4 {[%emt 0:00:10]} 37. Rf4 {[%emt 0:00:27]} Nc6 {[%emt 0:03:14]} 38. Rxc4 {[%emt 0:00:56]} Ne5 {[%emt 0:00:45]} 39. Rd4 {[%emt 0:04:03]} Nc6 {[%emt 0:00:34]} 40. Rc4 {[%emt 0:02:16]} Ne5 {[%emt 0:00:06]} 41. Rc3 {[%emt 0:00:31]} Nxg4+ {[%emt 0:01:59]} 42. Kg3 {[%emt 0:00:09]} Nf6 {[%emt 0:00:11]} 43. Rf3 {[%emt 0:01:35]} Re2 {[%emt 0:00:43]} 44. Ba3 {[%emt 0:01:04]} Kf7 {[%emt 0:02:41]} 45. Rf2 {[%emt 0:01:55]} Re1 {[%emt 0:00:37]} 46. Kg2 {[%emt 0:00:21]} Ke6 {[%emt 0:00:33]} 47. Bb4 {[%emt 0:00:29]} Rb1 {[%emt 0:00:25]} 48. Bc3 {[%emt 0:00:15]} Kd5 {[%emt 0:01:11]} 49. Rf5+ {[%emt 0:00:50]} Kc4 {[%emt 0:01:25]} 50. Bxf6 {[%emt 0:00:53]} gxf6 {[%emt 0:00:02]} 51. Rxf6 {[%emt 0:00:10]} Rxb2+ {[%emt 0:00:10]} 52. Kg3 {[%emt 0:00:03]} Rb7 {[%emt 0:00:25]} 53. Rd6 {[%emt 0:00:33]} Kc5 {[%emt 0:00:24]} 54. Rd8 {[%emt 0:00:07]} Kc6 {[%emt 0:00:23]} 55. Kg4 {[%emt 0:01:14]} Rd7 {[%emt 0:00:30]} 56. Rf8 {[%emt 0:00:24]} Kd6 {[%emt 0:00:23]} 57. h4 {[%emt 0:00:50]} Rg7+ {[%emt 0:01:06]} 58. Kh5 {[%emt 0:00:15]} Ke7 {[%emt 0:00:08]} 59. Rf5 {[%emt 0:00:36]} Rf7 {[%emt 0:00:17]} 60. Rxf7+ {[%emt 0:00:40]} Kxf7 {[%emt 0:00:03]} 1/2-1/2

[Event "21st Mediterranean Flowers WGM 2021"]
[Site "Rijeka"]
[Date "2021.03.12"]
[Round "8.1"]
[White "Berke, Ana"]
[Black "Spiranec, Noemi"]
[Result "1/2-1/2"]
[ECO "C90"]
[WhiteElo "2188"]
[BlackElo "2077"]
[Annotator "ChessBase"]
[PlyCount "107"]
[EventDate "2021.03.07"]
[EventType "tourn"]
[EventCountry "CRO"]
[SourceTitle "playchess.com"]
[Source "ChessBase"]
[SourceQuality "1"]
[TimeControl "5400+30"]

1. e4 {[%emt 0:14:06]} e5 {[%emt 0:00:07]} 2. Nf3 {[%emt 0:00:37]} Nc6 {[%emt 0:00:09]} 3. Bb5 {[%emt 0:00:10]} a6 {[%emt 0:00:06]} 4. Ba4 {[%emt 0:00:05]} Nf6 {[%emt 0:00:06]} 5. O-O {[%emt 0:00:05]} Be7 {[%emt 0:00:05]} 6. Re1 {[%emt 0:00:12]} b5 {[%emt 0:00:07]} 7. Bb3 {[%emt 0:00:04]} d6 {[%emt 0:00:05]} 8. c3 {[%emt 0:00:06]} O-O {[%emt 0:00:15]} 9. d3 {[%emt 0:00:19]} Na5 {[%emt 0:03:23]} 10. Bc2 {[%emt 0:00:04]} c5 {[%emt 0:00:05]} 11. Nbd2 {[%emt 0:00:03]} Re8 {[%emt 0:04:30]} 12. Nf1 {[%emt 0:01:09]} h6 {[%emt 0:02:33]} 13. h3 {[%emt 0:01:12]} Bf8 {[%emt 0:04:30]} 14. Ng3 {[%emt 0:09:34]} Nc6 {[%emt 0:08:20]} 15. d4 {[%emt 0:02:29]} cxd4 {[%emt 0:00:50]} 16. cxd4 {[%emt 0:00:09]} Bd7 {[%emt 0:15:40]} 17. Be3 {[%emt 0:03:26]} Rc8 {[%emt 0:02:18]} 18. Rc1 {[%emt 0:01:44]} Na5 {[%emt 0:06:03]} 19. b3 {[%emt 0:02:15]} Nb7 {[%emt 0:00:02]} 20. Qd2 {[%emt 0:01:47]} Kh7 {[%emt 0:03:37]} 21. b4 {[%emt 0:13:50]} g6 {[%emt 0:06:17]} 22. a3 {[%emt 0:04:00]} Bg7 {[%emt 0:02:30]} 23. d5 {[%emt 0:02:17]} Rf8 {[%emt 0:05:52]} 24. Bd3 {[%emt 0:03:38]} Rxc1 {[%emt 0:00:33]} 25. Rxc1 {[%emt 0:00:28]} Nxe4 {[%emt 0:01:33]} 26. Nxe4 {[%emt 0:05:13]} f5 {[%emt 0:00:02]} 27. Nfg5+ {[%emt 0:03:57]} hxg5 {[%emt 0:00:30]} 28. Nxg5+ {[%emt 0:01:23]} Kg8 {[%emt 0:00:04]} 29. f4 {[%emt 0:00:39]} Bf6 {[%emt 0:07:29]} 30. h4 {[%emt 0:01:25]} exf4 {[%emt 0:01:03]} 31. Bxf4 {[%emt 0:00:34]} Qb6+ {[%emt 0:00:01]} 32. Kh2 {[%emt 0:01:43]} Nd8 {[%emt 0:03:07]} 33. Qe1 {[%emt 0:05:01]} Qd4 {[%emt 0:06:03]} 34. Qg3 {[%emt 0:01:57]} Qxd5 {[%emt 0:00:47]} 35. Rc7 {[%emt 0:03:31]} Be8 {[%emt 0:01:28]} 36. Bxd6 {[%emt 0:00:45]} Bxg5 {[%emt 0:00:40]} 37. hxg5 {[%emt 0:05:19]} Rf7 {[%emt 0:01:02]} 38. Bc2 {[%emt 0:01:42]} Rxc7 {[%emt 0:01:52]} 39. Bxc7 {[%emt 0:00:08]} Bf7 {[%emt 0:00:47]} 40. Be5 {[%emt 0:00:42]} Ne6 {[%emt 0:00:57]} 41. Bb2 {[%emt 0:00:43]} Kf8 {[%emt 0:03:10]} 42. Bb3 {[%emt 0:02:41]} Qd7 {[%emt 0:01:57]} 43. Be5 {[%emt 0:03:14]} Nxg5 {[%emt 0:01:55]} 44. Qxg5 {[%emt 0:03:32]} Bxb3 {[%emt 0:00:02]} 45. Qxg6 {[%emt 0:00:45]} Be6 {[%emt 0:02:31]} 46. Qh6+ {[%emt 0:00:14]} Ke8 {[%emt 0:01:01]} 47. Qh8+ {[%emt 0:01:15]} Kf7 {[%emt 0:01:22]} 48. Qh5+ {[%emt 0:00:50]} Kf8 {[%emt 0:00:43]} 49. Qg5 {[%emt 0:01:06]} Qh7+ {[%emt 0:01:27]} 50. Kg1 {[%emt 0:00:19]} Qa7+ {[%emt 0:00:13]} 51. Kh2 {[%emt 0:01:08]} Qh7+ {[%emt 0:00:02]} 52. Kg1 {[%emt 0:01:24]} Qa7+ {[%emt 0:00:01]} 53. Kh2 {[%emt 0:00:42]} Qh7+ {[%emt 0:00:03]} 54. Kg1 {[%emt 0:00:07]} 1/2-1/2

[Event "21st Mediterranean Flowers WGM 2021"]
[Site "Rijeka"]
[Date "2021.03.12"]
[Round "8.3"]
[White "Radikovic, Anamarija"]
[Black "Hrescak, Ivana"]
[Result "0-1"]
[ECO "E61"]
[WhiteElo "1986"]
[BlackElo "2201"]
[Annotator "ChessBase"]
[PlyCount "118"]
[EventDate "2021.03.07"]
[EventType "tourn"]
[EventCountry "CRO"]
[SourceTitle "playchess.com"]
[Source "ChessBase"]
[SourceQuality "1"]
[TimeControl "5400+30"]

1. d4 {[%emt 0:00:00]} Nf6 {[%emt 0:00:30]} 2. c4 {[%emt 0:00:00]} g6 {[%emt 0:00:04]} 3. Nc3 {[%emt 0:00:00]} Bg7 {[%emt 0:00:03]} 4. Nf3 {[%emt 0:00:00]} d6 {[%emt 0:00:04]} 5. Bg5 {[%emt 0:00:00]} c6 {[%emt 0:01:15]} 6. e3 {[%emt 0:00:00]} Nbd7 {[%emt 0:01:44]} 7. Qc2 {[%emt 0:00:14]} a6 {[%emt 0:03:25]} 8. a4 {[%emt 0:08:10]} Qa5 {[%emt 0:02:00]} 9. Rb1 {[%emt 0:01:35]} Qb4 {[%emt 0:02:56]} 10. Bd3 {[%emt 0:04:50]} e5 {[%emt 0:02:25]} 11. O-O {[%emt 0:01:42]} O-O {[%emt 0:01:25]} 12. Na2 {[%emt 0:22:41]} Qb6 {[%emt 0:01:02]} 13. b4 {[%emt 0:01:07]} Re8 {[%emt 0:01:23]} 14. Nc3 {[%emt 0:01:11]} Qc7 {[%emt 0:06:53]} 15. h3 {[%emt 0:06:39]} Nh5 {[%emt 0:01:39]} 16. dxe5 {[%emt 0:08:29]} dxe5 {[%emt 0:00:18]} 17. c5 {[%emt 0:06:05]} Nhf6 {[%emt 0:06:11]} 18. Bc4 {[%emt 0:07:04]} a5 {[%emt 0:05:29]} 19. Qb3 {[%emt 0:03:54]} Rf8 {[%emt 0:00:55]} 20. Bxf6 {[%emt 0:03:54]} Nxf6 {[%emt 0:01:36]} 21. Ng5 {[%emt 0:00:38]} Bf5 {[%emt 0:02:35]} 22. e4 {[%emt 0:02:46]} Bc8 {[%emt 0:00:33]} 23. b5 {[%emt 0:01:05]} h6 {[%emt 0:02:11]} 24. Nf3 {[%emt 0:01:08]} Nd7 {[%emt 0:01:58]} 25. Qa3 {[%emt 0:03:51]} Bf6 {[%emt 0:09:48]} 26. Ne1 {[%emt 0:02:56]} Qd8 {[%emt 0:03:49]} 27. Nd3 {[%emt 0:00:46]} Kg7 {[%emt 0:03:57]} 28. Rfd1 {[%emt 0:01:55]} Re8 {[%emt 0:02:51]} 29. Ba2 {[%emt 0:01:38]} Qe7 {[%emt 0:02:11]} 30. Re1 {[%emt 0:02:01]} Qf8 {[%emt 0:03:47]} 31. Rec1 {[%emt 0:01:52]} Be7 {[%emt 0:02:25]} 32. Nd1 {[%emt 0:00:06]} cxb5 {[%emt 0:04:51]} 33. Rxb5 {[%emt 0:02:13]} b6 {[%emt 0:01:11]} 34. Bd5 {[%emt 0:00:05]} Ra7 {[%emt 0:02:27]} 35. Qb2 {[%emt 0:01:39]} Nxc5 {[%emt 0:04:09]} 36. Nxc5 {[%emt 0:01:34]} Bxc5 {[%emt 0:00:01]} 37. Ne3 {[%emt 0:01:57]} Ba3 {[%emt 0:02:50]} 38. Qc2 {[%emt 0:00:14]} Bxc1 {[%emt 0:00:38]} 39. Qxc1 {[%emt 0:00:05]} Bd7 {[%emt 0:04:03]} 40. Rxb6 {[%emt 0:00:04]} Rc8 {[%emt 0:05:34]} 41. Qb2 {[%emt 0:00:30]} Qe7 {[%emt 0:00:51]} 42. f4 {[%emt 0:03:04]} Kh7 {[%emt 0:03:18]} 43. f5 {[%emt 0:00:48]} Qc5 {[%emt 0:01:21]} 44. fxg6+ {[%emt 0:00:11]} fxg6 {[%emt 0:00:08]} 45. Rb3 {[%emt 0:00:58]} Bxa4 {[%emt 0:00:46]} 46. Ra3 {[%emt 0:00:04]} Bb5 {[%emt 0:01:14]} 47. Kh2 {[%emt 0:00:07]} a4 {[%emt 0:01:43]} 48. Ng4 {[%emt 0:00:06]} Rf8 {[%emt 0:00:50]} 49. Qd2 {[%emt 0:00:37]} g5 {[%emt 0:00:20]} 50. Rc3 {[%emt 0:00:48]} Qd4 {[%emt 0:00:05]} 51. Qc1 {[%emt 0:00:15]} Qb6 {[%emt 0:01:09]} 52. Rc8 {[%emt 0:01:38]} Rf1 {[%emt 0:00:34]} 53. Bg8+ {[%emt 0:00:22]} Kg7 {[%emt 0:00:11]} 54. Qb2 {[%emt 0:00:09]} Re7 {[%emt 0:00:33]} 55. Qb4 {[%emt 0:00:41]} Rd7 {[%emt 0:00:43]} 56. Bd5 {[%emt 0:00:55]} h5 {[%emt 0:00:27]} 57. Rg8+ {[%emt 0:00:24]} Kh7 {[%emt 0:00:06]} 58. Rf8 {[%emt 0:00:31]} Qg1+ {[%emt 0:00:20]} 59. Kg3 {[%emt 0:00:06]} h4# {[%emt 0:00:06]} 0-1